bitfinex-derivatives/quotes_ETHF0:USTF0_20241231
["timestamp","ask_amount","ask_price","bid_price","bid_amount"]
[1735635970317,0.428,3382.0,3381.5,3.2078]
[1735635970504,3.2078,3382.2,3381.6,0.8599]
[1735635970710,3.2078,3382.2,3381.7,0.23695]
[1735635971013,0.23695,3381.8,3381.5,0.23697]
[1735635971211,0.23693,3382.1,3381.8,0.23694]
[1735635971512,0.23692,3382.2,3381.9,0.23694]
[1735635971813,0.23692,3382.2,3381.6,0.4401]
[1735635971814,3.2078,3382.2,3381.6,0.4401]
[1735635972014,3.2078,3382.2,3381.6,0.67706]
[1735635972015,0.23694,3381.9,3381.6,0.67706]
[1735635972220,0.23695,3381.8,3381.6,0.4401]
[1735635972715,0.23695,3381.7,3381.6,0.4401]
[1735635972903,0.23698,3381.3,3381.2,0.4401]
[1735635973909,0.8784,3381.6,3381.2,0.4401]
[1735635974407,0.23698,3381.3,3381.2,0.4401]
[1735635974612,0.8784,3381.6,3380.9,0.435]
[1735635974815,0.23699,3381.2,3380.9,0.67201]
[1735635975511,0.8784,3381.6,3380.9,0.435]
[1735635975708,0.8784,3381.6,3380.9,2.82813419]
[1735635975910,0.23699,3381.2,3380.9,0.67201]
[1735635976112,0.8784,3381.6,3380.9,0.435]
[1735635976316,0.68656,3381.6,3381.3,0.23698]
[1735635976616,0.4496,3381.6,3381.0,3.2078]
[1735635976818,0.23696,3381.7,3381.4,0.23697]
[1735635977016,0.4346,3381.9,3381.5,0.442]
[1735635977217,3.2078,3382.2,3381.5,2.83513419]
[1735635977417,3.2078,3382.2,3381.6,1.14526]
[1735635977622,0.23694,3381.9,3381.6,1.14526]
[1735635978221,0.23695,3381.7,3381.6,0.4491]
[1735635978515,0.23697,3381.5,3381.4,3.2078]
[1735635979517,1.2641,3381.6,3380.5,3.2078]
[1735635979815,0.23702,3380.8,3380.6,0.23703]
[1735635980017,0.23703,3380.7,3380.5,4.0978]
[1735635980321,0.23703,3380.6,3380.5,4.0978]
[1735635981120,0.23702,3380.8,3380.5,4.33484]
[1735635981515,3.2078,3381.3,3380.5,4.0978]
[1735635981723,0.23702,3380.8,3380.5,4.0978]
[1735635982022,3.2078,3381.3,3380.5,4.0978]
[1735635982218,0.23703,3380.6,3380.5,4.0978]
[1735635982414,0.23703,3380.6,3380.5,3.6573]
[1735635982625,0.23703,3380.6,3380.5,3.2078]
[1735635983618,2.39313419,3381.1,3380.1,0.4325]
[1735635983824,0.23702,3380.7,3380.3,0.23704]
[1735635984021,0.23701,3380.9,3380.1,0.4325]
[1735635984222,2.39313419,3381.1,3380.1,0.4325]
[1735635984425,0.23703,3380.6,3380.3,0.23705]
[1735635984727,0.23702,3380.7,3380.4,0.23704]
[1735635985233,0.4561,3380.8,3380.1,0.4325]
[1735635985420,0.69312,3380.8,3380.5,0.23703]
[1735635986328,0.4561,3380.8,3380.2,0.23706]
[1735635986626,0.4561,3380.8,3380.6,0.23703]
[1735635986822,3.2078,3380.9,3380.8,0.23702]
[1735635987724,3.2078,3380.9,3380.8,41.03702]
[1735635988226,3.2078,3381.3,3380.8,49.0078]
[1735635988418,3.2078,3381.3,3381.2,0.23699]
[1735635988621,3.2078,3381.3,3381.0,0.237]
[1735635988821,3.2078,3381.3,3380.9,1.3328]
[1735635989330,3.2078,3381.3,3380.9,0.4565]
[1735635989522,0.23699,3381.2,3380.9,0.69351]
[1735635989727,0.23699,3381.2,3380.9,0.4565]
[1735635990128,3.2078,3381.3,3380.9,0.4565]
[1735635990432,0.237,3381.0,3380.7,1.27002]
[1735635990624,0.4485,3381.2,3380.7,1.27002]
[1735635990826,0.23701,3380.9,3380.6,0.23703]
[1735635991326,0.419,3380.8,3380.2,3.643]
[1735635991526,0.23704,3380.5,3380.2,0.67225]
[1735635991931,0.419,3380.8,3380.2,0.4352]
[1735635992131,0.23702,3380.7,3380.3,0.23705]
[1735635992426,0.23704,3380.6,3380.3,0.23705]
[1735635992625,0.419,3380.8,3380.2,0.4352]
[1735635992932,0.23705,3380.4,3380.1,0.23706]
[1735635993322,0.23704,3380.6,3379.9,0.8427]
[1735635993528,0.419,3380.8,3380.2,3.2078]
[1735635993730,0.419,3380.8,3380.5,0.23704]
[1735635994027,0.23704,3380.5,3380.3,0.23705]
[1735635994223,0.23703,3380.6,3380.3,0.23705]
[1735635994424,0.23702,3380.7,3380.4,0.23704]
[1735635994728,0.23703,3380.6,3380.3,0.23705]
[1735635995632,2.81213419,3380.8,3380.2,0.23706]
[1735635995928,0.23704,3380.6,3380.2,0.23705]
[1735635996230,0.23704,3380.5,3380.2,0.23705]
[1735635996427,2.81213419,3380.8,3380.1,0.23706]
[1735635996733,2.81213419,3380.8,3379.9,0.8427]
[1735635996931,0.23705,3380.4,3380.1,0.23706]
[1735635997428,0.23705,3380.4,3380.2,0.23706]
[1735635998030,0.23703,3380.6,3379.9,0.8427]
[1735635998331,0.23704,3380.5,3380.2,0.23705]
[1735635998835,0.419,3380.8,3379.9,0.8427]
[1735635999031,0.23705,3380.4,3379.9,0.8427]
[1735635999332,0.23705,3380.4,3380.1,0.23706]
[1735636000433,0.23702,3380.7,3380.1,0.23706]
[1735636000626,0.23705,3380.4,3380.1,0.23706]
[1735636000829,0.419,3380.8,3379.9,0.8427]
[1735636001027,0.65602,3380.8,3380.5,0.23704]
[1735636001433,0.419,3380.8,3379.9,0.8427]
[1735636001832,0.23705,3380.4,3379.9,0.8427]
[1735636002132,0.419,3380.8,3379.9,0.8427]
[1735636002133,2.81213419,3380.8,3379.9,0.8427]
[1735636002333,0.23705,3380.3,3380.1,0.23706]
[1735636002628,0.23705,3380.4,3380.1,0.23706]
[1735636003130,0.419,3380.8,3379.9,0.4208]
[1735636003532,0.23704,3380.5,3380.2,0.23705]
[1735636003927,0.419,3380.8,3380.2,0.23705]
[1735636004332,0.23704,3380.5,3380.2,0.23705]
[1735636004539,0.23702,3380.7,3380.2,0.23705]
[1735636004833,0.23704,3380.5,3380.2,0.23705]
[1735636005330,0.23704,3380.5,3379.9,0.4208]
[1735636005522,0.23703,3380.7,3380.4,0.23704]
[1735636005929,0.419,3380.8,3379.9,0.4208]
[1735636005930,0.23703,3380.6,3379.9,0.4208]
[1735636006132,0.23703,3380.6,3380.3,0.23705]
[1735636006330,0.23704,3380.5,3380.3,0.23705]
[1735636007230,0.419,3380.8,3380.2,0.23705]
[1735636008137,0.23704,3380.5,3380.2,0.23705]
[1735636008634,0.419,3380.8,3380.2,0.23705]
[1735636008831,0.419,3380.8,3379.9,0.4208]
[1735636009024,0.23705,3380.4,3380.1,0.23706]
[1735636009342,2.81213419,3380.8,3379.9,0.4208]
[1735636009534,0.23702,3380.7,3380.5,0.23704]
[1735636009930,0.23702,3380.7,3379.9,0.4208]
[1735636010132,0.419,3380.8,3380.4,0.23704]
[1735636010331,0.23703,3380.6,3380.4,0.23704]
[1735636010530,0.419,3380.8,3379.9,0.4208]
[1735636010837,0.23704,3380.5,3380.3,0.23705]
[1735636011234,0.23703,3380.6,3380.4,0.23704]
[1735636012041,0.419,3380.8,3379.9,0.4208]
[1735636012337,0.65602,3380.8,3380.6,0.23703]
[1735636013233,0.419,3380.8,3380.7,0.23702]
[1735636013641,0.4485,3381.2,3380.4,2.39313419]
[1735636013843,0.4485,3381.2,3381.1,0.23699]
[1735636014139,0.68549,3381.2,3381.0,0.237]
[1735636014340,0.4485,3381.2,3380.5,0.8893]
[1735636014541,0.237,3381.1,3380.5,0.8893]
[1735636014731,0.237,3381.1,3380.8,0.23701]
[1735636015934,0.4485,3381.2,3380.5,0.8893]
[1735636016133,0.68549,3381.2,3381.0,0.237]
[1735636016536,0.4485,3381.2,3381.1,0.23699]
[1735636016736,3.6406,3381.3,3381.2,0.23699]
[1735636017139,3.2078,3381.3,3381.2,0.23699]
[1735636019641,0.65366,3381.7,3381.5,0.23696]
[1735636020239,0.4242,3381.8,3381.7,0.23695]
[1735636021339,0.4242,3381.8,3381.6,0.23695]
[1735636021746,0.4242,3381.8,3381.7,0.23695]
[1735636022048,0.4242,3381.8,3381.4,3.2078]
[1735636022245,0.66115,3381.8,3381.4,3.2078]
[1735636022439,0.66115,3381.8,3381.6,0.23696]
[1735636022941,0.4242,3381.8,3381.6,0.23696]
[1735636023645,0.23697,3381.5,3381.4,3.2078]
[1735636024045,0.23696,3381.6,3381.4,3.2078]
[1735636024541,0.23696,3381.7,3381.4,3.44477]
[1735636024845,0.4242,3381.8,3381.4,3.44477]
[1735636024846,0.23696,3381.6,3381.4,3.2078]
[1735636025341,0.23696,3381.6,3381.4,3.44477]
[1735636025541,0.4242,3381.8,3381.4,3.2078]
[1735636025742,0.4242,3381.8,3381.5,0.23697]
[1735636025944,0.66115,3381.8,3381.5,0.23697]
[1735636026340,0.4267,3382.2,3381.4,3.2078]
[1735636026645,0.4241,3382.2,3382.0,0.23693]
[1735636026852,0.66102,3382.2,3381.9,0.23693]
[1735636027043,3.2078,3382.3,3382.0,0.4271]
[1735636027243,3.2078,3382.3,3382.2,0.23692]
[1735636027552,8.08919085,3382.5,3382.4,0.2369]
[1735636027740,8.08919085,3382.5,3382.4,3.4447]
[1735636028143,8.08919085,3382.5,3382.4,49.2447]
[1735636028348,3.2078,3383.6,3382.4,49.2447]
[1735636028349,3.2078,3383.6,3382.4,49.0078]
[1735636028648,0.23683,3383.5,3383.1,0.23685]
[1735636029050,0.23683,3383.5,3383.2,0.23685]
[1735636029346,3.2078,3383.6,3383.0,0.443]
[1735636029551,3.2078,3383.6,3383.1,0.23685]
[1735636029852,3.2078,3383.6,3382.9,3.2078]
[1735636030152,0.23685,3383.3,3382.9,3.44467]
[1735636030346,5.60093419,3383.6,3382.9,3.2078]
[1735636030847,0.23683,3383.4,3382.9,3.2078]
[1735636031045,0.23684,3383.3,3382.9,3.44466]
[1735636031249,0.23683,3383.4,3383.0,0.23686]
[1735636031551,5.60093419,3383.6,3382.9,3.2078]
[1735636031749,0.23683,3383.5,3383.0,0.23686]
[1735636031949,0.23684,3383.4,3383.0,0.23686]
[1735636032144,5.60093419,3383.6,3382.5,3.6508]
[1735636032351,0.23686,3383.0,3382.5,3.6508]
[1735636032746,0.23686,3383.1,3382.7,0.23688]
[1735636033148,0.69396,3383.0,3382.7,0.23688]
[1735636033348,0.4387,3382.9,3382.8,0.23688]
[1735636035145,0.69413,3383.5,3383.1,0.23685]
[1735636035462,0.23686,3383.0,3382.6,0.23688]
[1735636035947,0.23689,3382.6,3382.2,0.23691]
[1735636036152,0.4421,3382.5,3382.0,0.4345]
[1735636036451,0.23691,3382.3,3382.0,0.67143]
[1735636036653,0.4421,3382.5,3382.2,0.23691]
[1735636036845,0.4421,3382.5,3382.4,0.2369]
[1735636037353,3.2078,3382.8,3382.0,2.82763419]
[1735636037554,3.2078,3382.8,3382.1,0.4338]
[1735636038051,3.2078,3382.8,3382.0,0.4345]
[1735636038052,0.2369,3382.5,3382.0,0.4345]
[1735636038253,0.23691,3382.4,3382.1,0.23692]
[1735636038447,0.23691,3382.3,3382.0,0.67143]
[1735636038753,0.23689,3382.7,3382.0,0.4345]
[1735636039054,3.2078,3382.8,3382.0,0.4345]
[1735636039259,3.44468,3382.8,3382.4,0.2369]
[1735636039552,0.23688,3382.7,3382.4,0.2369]
[1735636041149,3.2078,3382.8,3382.4,0.2369]
[1735636041350,0.23688,3382.7,3382.4,0.2369]
[1735636041656,0.23688,3382.7,3382.3,0.23691]
[1735636041855,0.23688,3382.7,3382.0,3.6423]
[1735636042048,3.2078,3382.8,3382.0,3.6423]
[1735636042349,3.2078,3382.8,3382.0,6.03543419]
[1735636042553,3.44468,3382.8,3382.5,0.23689]
[1735636042851,0.8961,3382.9,3382.7,0.23688]
[1735636043047,0.8961,3382.9,3382.1,3.6599]
[1735636043356,0.4421,3382.9,3382.8,0.23688]
[1735636043651,3.2078,3383.6,3382.8,40.8]
[1735636043852,3.2078,3383.6,3383.5,0.23682]
[1735636044853,0.23682,3383.7,3383.4,0.23683]
[1735636045257,0.8409,3384.0,3383.1,2.39313419]
[1735636045754,1.0777,3384.0,3383.4,3.2078]
[1735636045952,0.8409,3384.0,3383.4,3.2078]
[1735636046157,0.8409,3384.0,3383.9,0.2368]
[1735636046346,0.2368,3383.9,3383.6,0.23682]
[1735636046746,0.8409,3384.0,3383.5,0.9022]
[1735636046956,0.8409,3384.0,3383.9,0.2368]
[1735636047361,3.2078,3384.1,3383.9,0.2368]
[1735636047654,3.2078,3384.1,3384.0,0.23679]
[1735636047855,3.2078,3384.5,3384.4,0.23676]
[1735636049356,3.2078,3385.3,3384.4,3.2078]
[1735636049551,3.2078,3385.3,3385.0,0.23672]
[1735636049852,3.4445,3385.3,3384.9,0.23672]
[1735636050056,0.23671,3385.2,3384.9,0.23672]
[1735636050455,0.23671,3385.2,3384.8,0.23674]
[1735636051460,0.23671,3385.2,3384.7,0.23674]
[1735636051663,0.23672,3385.1,3384.7,0.23674]
[1735636052261,3.2078,3385.3,3384.8,0.23673]
[1735636053164,3.2078,3385.3,3384.5,0.4353]
[1735636053758,3.4445,3385.3,3384.9,0.23672]
[1735636054756,3.2078,3385.3,3384.5,0.4353]
[1735636054958,0.23671,3385.2,3384.7,0.23674]
[1735636055462,3.2078,3385.3,3385.0,0.23672]
[1735636055860,3.2078,3385.3,3384.5,0.4353]
[1735636056154,3.2078,3385.3,3385.1,0.23671]
[1735636056857,0.23671,3385.2,3384.8,0.23673]
[1735636057062,0.8945,3385.4,3384.7,0.4438]
[1735636057558,0.2367,3385.3,3384.7,0.4438]
[1735636057860,0.2367,3385.3,3384.9,0.23673]
[1735636058057,1.1312,3385.4,3385.0,0.23672]
[1735636058360,0.23672,3385.1,3384.6,0.23675]
[1735636058657,0.23675,3384.7,3384.4,3.2078]
[1735636058857,0.23676,3384.5,3384.4,3.2078]
[1735636059360,0.8859,3384.6,3384.4,3.2078]
[1735636059555,0.23676,3384.5,3384.4,3.2078]
[1735636059750,0.8859,3384.6,3384.4,3.2078]
[1735636060157,0.8859,3384.6,3384.4,3.44456]
[1735636060353,1.12265,3384.6,3384.4,3.2078]
[1735636060559,0.23673,3384.9,3384.5,0.23675]
[1735636060756,0.23674,3384.8,3384.5,0.23675]
[1735636061056,0.8817,3384.9,3384.8,0.23674]
[1735636061256,0.4265,3385.2,3384.6,0.23675]
[1735636061454,0.4245,3385.3,3385.1,0.23671]
[1735636061660,0.66121,3385.3,3384.9,0.23673]
[1735636061854,0.4245,3385.3,3384.8,0.23673]
[1735636062161,0.23672,3385.1,3384.7,0.23674]
[1735636062357,0.4245,3385.3,3384.5,41.6776]
[1735636062562,0.23671,3385.2,3384.8,0.23673]
[1735636063267,0.4245,3385.3,3384.5,41.6776]
[1735636063461,0.23673,3384.9,3384.6,0.23674]
[1735636063660,3.2078,3385.0,3384.5,0.4597]
[1735636063860,0.23673,3384.9,3384.5,0.4597]
[1735636064063,3.44452,3385.0,3384.7,0.23674]
[1735636064269,0.23675,3384.7,3384.5,0.4597]
[1735636064560,0.23675,3384.7,3384.4,0.23676]
[1735636064561,0.23674,3384.8,3384.4,0.23676]
[1735636064755,0.4207,3384.6,3384.4,0.23676]
[1735636065159,0.4207,3384.6,3384.1,0.4403]
[1735636065359,0.4402,3384.5,3384.1,0.4403]
[1735636065555,0.23679,3384.1,3383.9,44.0078]
[1735636065757,0.23679,3384.1,3383.9,3.2078]
[1735636065959,0.23679,3384.1,3383.8,0.2368]
[1735636066160,0.4329,3384.4,3383.8,0.2368]
[1735636066366,0.23677,3384.3,3384.0,0.23679]
[1735636066863,0.4329,3384.4,3384.0,0.23679]
[1735636067061,0.23677,3384.3,3384.0,0.23679]
[1735636067366,0.4329,3384.4,3384.2,0.23677]
[1735636067668,0.4329,3384.4,3383.7,0.23681]
[1735636067669,0.23678,3384.2,3383.7,0.23681]
[1735636067864,0.23678,3384.2,3383.6,40.8]
[1735636068363,0.4329,3384.4,3383.6,40.8]
[1735636068567,0.66967,3384.4,3384.1,0.23678]
[1735636068967,0.4329,3384.4,3384.1,0.23678]
[1735636069166,0.4329,3384.4,3383.8,3.2078]
[1735636069364,0.23677,3384.3,3384.0,0.23679]
[1735636069764,0.23677,3384.3,3383.9,0.2368]
[1735636069967,0.66967,3384.4,3384.1,0.23678]
[1735636070663,0.4329,3384.4,3384.0,0.23679]
[1735636070871,0.4329,3384.4,3384.1,0.23678]
[1735636071162,0.4329,3384.4,3383.8,3.2078]
[1735636071366,0.66967,3384.4,3384.1,0.23678]
[1735636071763,0.4329,3384.4,3383.8,3.2078]
[1735636071964,0.4329,3384.4,3384.2,0.23677]
[1735636073062,0.4329,3384.4,3383.9,0.2368]
[1735636073063,0.66967,3384.4,3383.9,0.2368]
[1735636073270,0.66967,3384.4,3384.0,0.23679]
[1735636073472,0.66967,3384.4,3383.7,2.39313419]
[1735636073473,0.23677,3384.3,3383.9,0.23679]
[1735636073671,0.23677,3384.3,3384.0,0.23679]
[1735636073872,0.66967,3384.4,3384.1,0.23678]
[1735636074169,0.4402,3384.5,3384.2,0.23677]
[1735636074367,0.23676,3384.4,3384.1,0.23678]
[1735636074566,1.10496,3384.5,3383.9,0.2368]
[1735636074766,0.23677,3384.4,3384.1,0.23678]
[1735636075162,0.23677,3384.4,3383.8,3.2078]
[1735636075368,0.67696,3384.5,3384.1,0.23678]
[1735636075567,0.23677,3384.4,3384.1,0.23678]
[1735636075972,0.67696,3384.5,3383.8,3.2078]
[1735636076274,0.4402,3384.5,3383.8,3.2078]
[1735636076573,0.23677,3384.3,3384.0,0.23679]
[1735636076775,0.4402,3384.5,3383.8,3.2078]
[1735636077070,0.23676,3384.4,3384.2,0.23678]
[1735636077375,0.4402,3384.5,3384.3,0.23677]
[1735636077671,3.2078,3385.0,3384.3,2.39313419]
[1735636077873,3.2078,3385.0,3384.9,0.23673]
[1735636078370,3.44452,3385.0,3384.7,0.23674]
[1735636078672,0.23673,3384.9,3384.7,0.23674]
[1735636078875,3.44453,3385.0,3384.7,0.23674]
[1735636079579,3.2078,3385.0,3384.8,0.23673]
[1735636080473,3.44452,3385.0,3384.8,0.23673]
[1735636080877,3.2078,3385.0,3384.9,0.23673]
[1735636081574,3.44453,3385.0,3384.5,0.23676]
[1735636081771,0.23673,3384.9,3384.7,0.23674]
[1735636082076,3.2078,3385.0,3384.4,0.8944]
[1735636082273,0.23674,3384.7,3384.4,0.4378]
[1735636082469,0.23675,3384.6,3384.4,0.4378]
[1735636082666,0.23675,3384.6,3384.4,0.67456]
[1735636082873,0.4223,3384.8,3383.9,0.4593]
[1735636083076,0.4223,3384.8,3383.8,3.657]
[1735636083077,0.23677,3384.3,3384.0,0.69589]
[1735636083379,3.2078,3384.6,3384.0,0.4591]
[1735636083380,0.4328,3384.2,3384.0,0.4591]
[1735636083677,0.4328,3384.2,3384.0,0.69589]
[1735636084074,0.66958,3384.2,3384.0,0.4591]
[1735636084281,0.4328,3384.2,3384.1,0.23678]
[1735636084471,3.2078,3384.6,3384.0,0.4591]
[1735636084776,0.23677,3384.3,3384.0,0.69589]
[1735636084967,3.6664,3384.6,3384.0,0.4591]
[1735636085172,0.23677,3384.4,3384.1,0.23678]
[1735636086172,0.23676,3384.5,3384.2,0.23677]
[1735636086374,0.23676,3384.5,3384.0,0.4591]
[1735636086575,0.23674,3384.7,3384.4,0.23676]
[1735636086779,0.65904,3384.8,3384.5,0.23676]
[1735636087180,0.4223,3384.8,3384.7,0.23674]
[1735636087480,0.4586,3385.0,3384.3,5.60093419]
[1735636087783,0.23673,3384.9,3384.3,5.60093419]
[1735636088079,0.4586,3385.0,3384.4,0.23676]
[1735636088276,0.4586,3385.0,3384.3,3.2078]
[1735636088277,0.4275,3384.8,3384.3,3.2078]
[1735636088482,0.23674,3384.7,3384.4,0.23676]
[1735636088870,0.4275,3384.8,3384.5,0.23676]
[1735636089175,0.66424,3384.8,3384.5,0.23676]
[1735636089375,0.4275,3384.8,3384.2,0.23678]
[1735636089583,0.4275,3384.8,3384.1,0.4547]
[1735636089778,0.4275,3384.8,3384.3,0.23677]
[1735636089977,0.4275,3384.8,3384.6,0.23674]
[1735636090187,0.4586,3385.0,3384.3,2.39313419]
[1735636090481,3.2078,3385.1,3384.9,0.23673]
[1735636090679,3.2078,3385.1,3384.5,0.23675]
[1735636090885,0.23673,3384.9,3384.6,0.23674]
[1735636091079,0.23673,3385.0,3384.4,0.23676]
[1735636091378,0.23673,3385.0,3384.7,0.23674]
[1735636091379,0.23672,3385.0,3384.7,0.23674]
[1735636091772,3.44452,3385.1,3384.8,0.23673]
[1735636092080,0.0019494,3385.0,3384.9,0.23672]
[1735636092383,0.0019494,3385.0,3384.8,0.23673]
[1735636092776,0.0019494,3385.0,3384.9,0.23673]
[1735636092977,0.0019494,3385.0,3384.8,0.23673]
[1735636093981,0.0019494,3385.0,3384.6,0.4444]
[1735636094186,0.0019494,3385.0,3384.7,0.23674]
[1735636094481,0.2386794,3385.0,3384.7,0.23674]
[1735636094980,0.0019494,3385.0,3384.6,0.4444]
[1735636095187,0.0019494,3385.0,3384.8,0.23674]
[1735636095386,0.0019494,3385.0,3384.6,0.4444]
[1735636095585,0.0019494,3385.0,3384.9,0.23673]
[1735636096788,0.0019494,3385.0,3384.6,0.4444]
[1735636096977,0.2386694,3385.0,3384.7,0.23674]
[1735636097182,0.0019494,3385.0,3384.6,0.4444]
[1735636097384,0.0019494,3385.0,3384.9,0.23673]
[1735636097688,0.0019494,3385.0,3384.8,0.23673]
[1735636097890,0.0019494,3385.0,3384.9,0.23673]
[1735636098289,0.0019494,3385.0,3384.9,2.62986419]
[1735636099982,0.0019494,3385.0,3384.9,43.42986419]
[1735636101280,10.38228668,3386.0,3384.9,50.58626838]
[1735636101482,10.38228668,3386.0,3385.9,0.23666]
[1735636101886,10.38228668,3386.0,3385.9,1.12336]
[1735636102489,3.2078,3386.3,3385.9,0.8867]
[1735636102791,3.2078,3386.3,3386.2,0.23664]
[1735636103593,3.2078,3386.3,3385.9,0.8867]
[1735636104093,3.2078,3386.3,3386.2,0.23664]
[1735636105894,0.452,3386.5,3386.4,0.23662]
[1735636106697,0.452,3386.5,3386.3,0.23663]
[1735636107190,0.452,3386.5,3386.4,0.23662]
[1735636108090,3.40682131,3386.9,3386.4,2.39313419]
[1735636108295,0.19902131,3386.9,3386.4,2.39313419]
[1735636108493,1.306,3387.2,3386.6,0.23661]
[1735636108494,0.23659,3387.0,3386.6,0.23661]
[1735636108692,0.23659,3387.0,3386.6,0.69261]
[1735636109393,0.23659,3386.9,3386.5,41.47501]
[1735636109590,3.2078,3387.3,3386.5,41.2384]
[1735636109796,8.31167186,3387.4,3386.9,0.23658]
[1735636109997,0.4246,3387.2,3386.7,2.39313419]
[1735636110296,0.23659,3386.9,3386.6,0.23661]
[1735636110497,0.23659,3386.9,3386.5,44.68281]
[1735636110695,0.2366,3386.8,3386.5,0.67502]
[1735636110995,0.4412,3387.1,3386.3,0.23663]
[1735636110996,0.2366,3386.7,3386.3,0.23663]
[1735636111197,0.2366,3386.7,3386.2,0.4363]
[1735636111198,0.4607,3386.6,3386.4,0.23662]
[1735636111389,0.4607,3386.6,3386.5,0.23662]
[1735636113094,0.4607,3386.6,3386.4,0.23662]
[1735636113690,0.23659,3386.9,3386.5,0.23661]
[1735636113895,0.4521,3387.0,3386.4,2.39313419]
[1735636114100,0.2366,3386.8,3386.4,2.62975419]
[1735636114300,0.2366,3386.8,3386.4,0.23662]
[1735636114896,3.2078,3386.9,3386.1,0.4407]
[1735636115095,0.4521,3387.0,3385.7,3.2078]
[1735636115096,3.2078,3386.5,3385.8,0.4509]
[1735636115402,0.23664,3386.2,3385.8,0.23667]
[1735636115605,0.8765,3386.4,3385.7,3.2078]
[1735636115898,0.4521,3386.3,3385.7,3.2078]
[1735636116093,2.98460419,3387.0,3386.2,0.23663]
[1735636116094,0.23662,3386.6,3386.2,0.23663]
[1735636116495,0.23662,3386.5,3386.2,0.23663]
[1735636117397,0.23663,3386.3,3386.0,0.23665]
[1735636117603,0.23662,3386.5,3386.1,0.8748]
[1735636117803,0.23662,3386.4,3386.1,1.11144]
[1735636118002,3.2078,3386.6,3386.1,0.8748]
[1735636118298,3.2078,3386.6,3386.3,0.23663]
[1735636118602,0.8778,3386.9,3386.4,2.39313419]
[1735636118995,0.2366,3386.7,3386.4,0.23662]
[1735636119598,0.8778,3386.9,3386.2,40.8]
[1735636119797,0.23662,3386.5,3386.2,41.03663]
[1735636121505,0.23663,3386.4,3386.1,4.31924]
[1735636122003,0.23662,3386.5,3386.2,0.23663]
[1735636122203,0.23662,3386.4,3386.1,4.31924]
[1735636122396,0.23663,3386.3,3386.1,3.6317]
[1735636122592,0.8778,3386.9,3386.1,3.6317]
[1735636122805,0.23663,3386.4,3386.1,3.86834]
[1735636123004,0.23663,3386.4,3385.9,40.8]
[1735636123005,0.23664,3386.2,3385.9,0.23666]
[1735636123298,3.2078,3386.6,3385.9,0.23666]
[1735636123603,0.23663,3386.3,3386.0,0.4611]
[1735636123806,0.23663,3386.3,3386.0,0.23665]
[1735636124197,0.23662,3386.5,3386.1,0.23664]
[1735636124703,0.67632,3386.5,3386.1,0.23664]
[1735636124903,0.4397,3386.5,3386.2,0.23663]
[1735636125103,0.4397,3386.5,3386.3,0.23663]
[1735636125405,0.67632,3386.5,3386.2,0.23663]
[1735636125898,0.4397,3386.5,3386.2,0.23663]
[1735636126093,0.23662,3386.4,3386.1,0.23664]
[1735636126296,0.4371,3386.3,3386.2,0.23664]
[1735636127601,0.4371,3386.3,3386.1,0.23664]
[1735636127909,0.4371,3386.3,3386.2,0.23664]
[1735636128407,0.8549,3386.3,3386.2,0.23664]
[1735636129003,0.8549,3386.3,3386.0,3.2078]
[1735636129306,0.8549,3386.3,3386.0,0.23665]
[1735636129504,3.2078,3387.0,3386.2,2.39313419]
[1735636129704,0.2366,3386.8,3386.5,0.23661]
[1735636129896,0.23659,3386.9,3386.6,0.23661]
[1735636130103,3.2078,3387.0,3386.3,0.4319]
[1735636130303,0.2366,3386.8,3386.5,0.23661]
[1735636130904,0.23661,3386.6,3386.3,0.23663]
[1735636131111,0.23662,3386.5,3386.2,0.23663]
[1735636131311,0.437,3386.5,3386.1,0.23664]
[1735636131506,0.437,3386.5,3386.0,3.2078]
[1735636131816,0.8747,3386.5,3386.4,0.23662]
[1735636132510,0.8747,3386.5,3386.0,3.2078]
[1735636132710,0.8747,3386.5,3386.3,0.23663]
[1735636132904,0.2366,3386.8,3386.5,0.23662]
[1735636133203,0.2366,3386.8,3386.2,2.39313419]
[1735636133204,3.2078,3387.0,3386.2,2.39313419]
[1735636133705,0.2366,3386.8,3386.5,0.23661]
[1735636133910,0.4199,3386.7,3386.5,0.23661]
[1735636134102,0.4199,3386.7,3386.6,0.23661]
[1735636134302,3.2078,3387.0,3386.2,2.39313419]
[1735636134507,3.2078,3387.0,3386.8,0.23659]
[1735636134711,0.23659,3386.9,3386.5,0.23661]
[1735636134911,0.23659,3386.9,3386.2,2.39313419]
[1735636135115,3.2078,3387.0,3386.2,2.39313419]
[1735636135311,3.44439,3387.0,3386.7,0.2366]
[1735636135608,0.2366,3386.8,3386.5,0.23662]
[1735636135813,3.2078,3387.0,3386.6,0.23661]
[1735636135814,0.23659,3386.9,3386.6,0.23661]
[1735636136113,3.2078,3387.0,3386.2,2.39313419]
[1735636136501,0.2366,3386.8,3386.5,0.23661]
[1735636136710,0.23659,3386.9,3386.6,0.2366]
[1735636137607,3.2078,3387.0,3386.2,2.39313419]
[1735636137809,0.23659,3386.9,3386.6,0.23661]
[1735636139012,3.2078,3387.0,3386.2,2.39313419]
[1735636139213,0.23659,3386.9,3386.6,0.23661]
[1735636140811,0.23659,3386.9,3386.2,2.39313419]
[1735636141214,0.23659,3386.9,3386.7,0.2366]
[1735636141510,3.2078,3387.0,3386.2,2.39313419]
[1735636141712,0.23659,3386.9,3386.7,0.2366]
[1735636142012,0.23659,3386.9,3386.6,0.23661]